bitfinex-derivatives/quotes_BNBF0:USTF0_20250529
["timestamp","ask_amount","ask_price","bid_price","bid_amount"]
[1748548201765,0.29628312,675.03,674.1,0.47116898]
[1748548201969,0.29628312,675.03,673.98,0.47116898]
[1748548202771,0.29628312,675.03,673.97,0.47116898]
[1748548203071,0.29628312,675.03,673.96,0.47116898]
[1748548203371,0.29628312,675.03,673.63,0.456]
[1748548207172,0.29628312,675.03,673.64,0.29689448]
[1748548209374,0.29628312,675.03,673.68,0.47116898]
[1748548209572,0.29628312,675.03,673.7,0.29686804]
[1748548226480,0.29628312,675.03,673.71,0.47116898]
[1748548226981,0.29628312,675.03,673.81,0.47116898]
[1748548227382,0.29628312,675.03,673.84,0.47116898]
[1748548227582,0.29628312,675.03,673.82,0.47116898]
[1748548228179,0.29628312,675.03,673.81,0.47116898]
[1748548228479,0.29628312,675.03,673.85,0.47116898]
[1748548228681,0.29628312,675.03,673.82,0.47116898]
[1748548228883,0.29628312,675.03,673.8,0.47116898]
[1748548229383,0.29628312,675.03,673.83,0.47116898]
[1748548230286,0.29628312,675.03,673.79,0.47116898]
[1748548230585,0.29628312,675.03,673.81,0.47116898]
[1748548230885,0.29628312,675.03,673.82,0.47116898]
[1748548231281,0.29628312,675.03,673.83,0.47116898]
[1748548231489,0.29628312,675.03,673.84,0.47116898]
[1748548231785,0.29628312,675.03,673.82,0.47116898]
[1748548231986,0.29628312,675.03,673.83,0.47116898]
[1748548232288,0.29628312,675.03,673.82,0.47116898]
[1748548232486,0.29628312,675.03,673.84,0.47116898]
[1748548233085,0.29628312,675.03,673.85,0.47116898]
[1748548233389,0.29628312,675.03,673.95,0.47116898]
[1748548234084,0.29628312,675.03,673.94,0.47116898]
[1748548234283,0.29628312,675.03,673.7,0.29686804]
[1748548234284,0.29628312,675.03,673.95,0.47116898]
[1748548234485,0.29628312,675.03,673.98,0.47116898]
[1748548235189,0.29628312,675.03,674.0,0.47116898]
[1748548235390,0.29628312,675.03,673.95,0.297]
[1748548238685,0.29628312,675.03,674.0,0.47116898]
[1748548238890,0.29628312,675.03,674.07,0.47116898]
[1748548239086,0.29628312,675.03,674.06,0.47116898]
[1748548239290,0.29628312,675.03,674.02,0.47116898]
[1748548239490,0.29628312,675.03,673.98,0.47116898]
[1748548240287,0.29628312,675.03,673.97,0.47116898]
[1748548240487,0.29628312,675.03,673.96,0.47116898]
[1748548241192,0.29628312,675.03,673.97,0.47116898]
[1748548241390,0.29628312,675.03,673.98,0.47116898]
[1748548241592,0.29628312,675.03,673.95,0.297]
[1748548241593,0.29628312,675.03,673.99,0.47116898]
[1748548241788,0.29628312,675.03,673.97,0.47116898]
[1748548242492,0.29628312,675.03,673.99,0.47116898]
[1748548243192,0.29628312,675.03,674.0,0.47116898]
[1748548243387,0.29628312,675.03,674.01,0.47116898]
[1748548243586,0.29628312,675.03,674.02,0.47116898]
[1748548244000,0.29628312,675.03,674.03,0.47116898]
[1748548244492,0.29628312,675.03,673.95,0.297]
[1748548244493,0.29628312,675.03,674.04,0.47116898]
[1748548244685,0.29628312,675.03,674.03,0.47116898]
[1748548244990,0.29628312,675.03,673.95,0.297]
[1748548244991,0.29628312,675.03,674.04,0.47116898]
[1748548245192,0.29628312,675.03,674.07,0.47116898]
[1748548245385,0.29628312,675.03,674.08,0.47116898]
[1748548245795,0.29628312,675.03,674.09,0.47116898]
[1748548246293,0.29628312,675.03,674.11,0.47116898]
[1748548246992,0.29628312,675.03,674.14,0.47116898]
[1748548247489,0.29628312,675.03,674.13,0.47116898]
[1748548247994,0.29628312,675.03,674.15,0.47116898]
[1748548248190,0.29628312,675.03,674.14,0.47116898]
[1748548248394,0.29628312,675.03,674.16,0.47116898]
[1748548249595,0.29628312,675.03,674.14,0.47116898]
[1748548250396,0.29628312,675.03,674.15,0.47116898]
[1748548251296,0.29628312,675.03,674.13,0.47116898]
[1748548251496,0.29628312,675.03,674.14,0.47116898]
[1748548252497,0.29628312,675.03,674.12,0.47116898]
[1748548252897,0.29628312,675.03,674.11,0.47116898]
[1748548253495,0.29628312,675.03,674.12,0.47116898]
[1748548254394,0.29628312,675.03,674.13,0.47116898]
[1748548254597,0.29628312,675.03,674.16,0.47116898]
[1748548255097,0.29628312,675.03,674.17,0.47116898]
[1748548255802,0.29628312,675.03,674.19,0.47116898]
[1748548256093,0.29628312,675.03,674.22,0.47116898]
[1748548256299,0.29628312,675.03,674.21,0.47116898]
[1748548256897,0.29628312,675.03,674.23,0.47116898]
[1748548258296,0.29628312,675.03,674.24,0.47116898]
[1748548258502,0.29628312,675.03,674.23,0.47116898]
[1748548258803,0.29628312,675.03,674.21,0.47116898]
[1748548259601,0.29628312,675.03,674.2,0.47116898]
[1748548260097,0.29628312,675.03,674.21,0.47116898]
[1748548260301,0.29628312,675.03,674.2,0.47116898]
[1748548261203,0.29628312,675.03,674.17,0.47116898]
[1748548261899,0.29628312,675.03,674.16,0.47116898]
[1748548262103,0.29628312,675.03,674.08,0.47116898]
[1748548262301,0.29628312,675.03,674.07,0.47116898]
[1748548262503,0.29628312,675.03,674.06,0.47116898]
[1748548263299,0.29628312,675.03,673.95,0.297]
[1748548265705,0.29628312,675.03,673.96,0.29675351]
[1748548267804,0.2578666,675.45,673.96,0.76792249]
[1748548268004,0.29610328,675.44,673.96,0.76792249]
[1748548268200,0.29610328,675.44,673.97,0.379]
[1748548268409,0.29610328,675.44,673.98,0.29674471]
[1748548269402,0.29610328,675.44,673.98,0.76791369]
[1748548269607,0.29610328,675.44,673.98,0.29674471]
[1748548272608,0.29610328,675.44,673.99,0.47116898]
[1748548272804,0.29610328,675.44,673.99,0.76790928]
[1748548273007,0.29610328,675.44,673.99,0.2967403]
[1748548276404,0.29610328,675.44,673.99,0.76790928]
[1748548277410,0.29610328,675.44,673.99,0.2967403]
[1748548282514,0.29610328,675.44,674.0,0.47031928]
[1748548282914,0.29610328,675.44,673.99,0.76705958]
[1748548283414,0.29610328,675.44,674.0,0.47031928]
[1748548284220,0.29610328,675.44,674.03,0.47031928]
[1748548284518,0.29610328,675.44,674.04,0.47031928]
[1748548284916,0.29610328,675.44,674.05,0.47031928]
[1748548285117,0.29610328,675.44,674.04,0.47031928]
[1748548285318,0.29610328,675.44,674.05,0.47031928]
[1748548285924,0.29610328,675.44,674.06,0.47031928]
[1748548286422,0.29610328,675.44,674.07,0.47031928]
[1748548287320,0.29610328,675.44,674.09,0.47031928]
[1748548288321,0.29610328,675.44,674.1,0.47031928]
[1748548289124,0.29610328,675.44,674.24,0.47031928]
[1748548290323,0.29610328,675.44,674.25,0.47031928]
[1748548292328,0.29610328,675.44,674.24,0.47031928]
[1748548293228,0.29610328,675.44,673.99,0.2967403]
[1748548301131,0.29610328,675.44,674.18,0.47031928]
[1748548301531,0.29610328,675.44,674.22,0.47031928]
[1748548302127,0.29610328,675.44,674.23,0.47031928]
[1748548303430,0.29610328,675.44,674.24,0.47031928]
[1748548304130,0.29610328,675.44,674.1,0.47031928]
[1748548304531,0.29610328,675.44,674.11,0.47031928]
[1748548305629,0.29610328,675.44,674.12,0.47031928]
[1748548305829,0.29610328,675.44,673.99,0.2967403]
[1748548305830,0.29610328,675.44,674.11,0.47031928]
[1748548306431,0.29610328,675.44,674.12,0.47031928]
[1748548306635,0.29610328,675.44,674.13,0.47031928]
[1748548306834,0.29610328,675.44,674.14,0.47031928]
[1748548307336,0.29610328,675.44,673.99,0.2967403]
[1748548307337,0.29610328,675.44,674.16,0.47031928]
[1748548307736,0.29610328,675.44,674.15,0.47031928]
[1748548308036,0.29610328,675.44,674.16,0.47031928]
[1748548308437,0.29610328,675.44,674.17,0.47031928]
[1748548308734,0.29610328,675.44,674.18,0.47031928]
[1748548310339,0.29610328,675.44,674.19,0.329]
[1748548311535,0.29610328,675.44,674.21,0.47031928]
[1748548311734,0.29610328,675.44,674.4,0.47031928]
[1748548311935,0.29610328,675.44,674.41,0.47031928]
[1748548312336,0.29610328,675.44,674.19,0.329]
[1748548312337,0.29610328,675.44,674.42,0.47031928]
[1748548312539,0.29610328,675.44,674.4,0.47031928]
[1748548313440,0.29610328,675.44,674.38,0.47031928]
[1748548314440,0.29610328,675.44,674.36,0.47031928]
[1748548315536,0.29610328,675.44,674.35,0.47031928]
[1748548316339,0.29610328,675.44,674.19,0.329]
[1748548316340,0.29610328,675.44,674.33,0.47031928]
[1748548316539,0.29610328,675.44,674.34,0.47031928]
[1748548316738,0.29610328,675.44,674.35,0.47031928]
[1748548317536,0.29610328,675.44,674.19,0.329]
[1748548317537,0.29610328,675.44,674.33,0.47031928]
[1748548318343,0.29610328,675.44,674.32,0.47031928]
[1748548318543,0.29610328,675.44,674.3,0.47031928]
[1748548319441,0.29610328,675.44,674.29,0.47031928]
[1748548319742,0.29610328,675.44,674.37,0.47031928]
[1748548321645,0.29610328,675.44,674.38,0.95331928]
[1748548322645,0.29610328,675.44,674.38,0.483]
[1748548352666,0.29610328,675.44,674.15,0.47031928]
[1748548352866,0.29610328,675.44,674.14,0.47031928]
[1748548353267,0.29610328,675.44,674.15,0.47031928]
[1748548353672,0.29610328,675.44,674.14,0.47031928]
[1748548354674,0.29610328,675.44,674.15,0.47031928]
[1748548355072,0.29610328,675.44,674.15,0.79431928]
[1748548355267,0.29610328,675.44,674.15,0.324]
[1748548357371,0.29610328,675.44,674.16,0.47031928]
[1748548357575,0.29610328,675.44,674.15,0.324]
[1748548357576,0.29610328,675.44,674.17,0.47031928]
[1748548357776,0.29610328,675.44,674.16,0.47031928]
[1748548359172,0.29610328,675.44,674.15,0.324]
[1748548399005,0.29610328,675.44,673.95,0.47031928]
[1748548399404,0.29610328,675.44,673.85,0.47031928]
[1748548399908,0.29610328,675.44,672.63,0.37944172]
[1748548399909,0.29610328,675.44,673.87,0.47031928]
[1748548400403,0.29610328,675.44,673.88,0.47031928]
[1748548401207,0.29610328,675.44,673.89,0.463]
[1748548407013,0.29610328,675.44,673.92,0.4716481]
[1748548408718,0.29610328,675.44,673.93,0.4716481]
[1748548409114,0.29610328,675.44,674.06,0.4716481]
[1748548409514,0.29610328,675.44,674.07,0.4716481]
[1748548410214,0.29610328,675.44,673.89,0.463]
[1748548413416,0.29610328,675.44,673.9,0.4716481]
[1748548414419,0.29610328,675.44,673.91,0.4716481]
[1748548414620,0.29610328,675.44,673.92,0.4716481]
[1748548415324,0.29610328,675.44,673.89,0.463]
[1748548415325,0.29610328,675.44,673.94,0.4716481]
[1748548417723,0.29610328,675.44,673.95,0.4716481]
[1748548419423,0.29610328,675.44,673.96,0.4716481]
[1748548419827,0.29610328,675.44,673.94,0.4716481]
[1748548420224,0.29610328,675.44,674.12,0.4716481]
[1748548420426,0.29610328,675.44,674.11,0.4716481]
[1748548420628,0.29610328,675.44,674.09,0.4716481]
[1748548421029,0.29610328,675.44,673.89,0.463]
[1748548424230,0.29610328,675.44,673.79,0.4716481]
[1748548426225,0.29610328,675.44,673.8,0.438]
[1748548430930,0.29610328,675.44,673.83,0.4716481]
[1748548431132,0.29610328,675.44,673.8,0.438]
[1748548439239,0.29610328,675.44,673.46,0.4716481]
[1748548440540,0.29610328,675.44,673.43,0.4716481]
[1748548440940,0.29610328,675.44,673.44,0.7886481]
[1748548441243,0.29610328,675.44,673.59,0.4716481]
[1748548441439,0.29610328,675.44,673.61,0.4716481]
[1748548441839,0.29610328,675.44,673.6,0.4716481]
[1748548442640,0.29610328,675.44,673.59,0.4716481]
[1748548444346,0.29610328,675.44,673.6,0.4716481]
[1748548444944,0.29610328,675.44,673.61,0.4716481]
[1748548445147,0.29610328,675.44,673.65,0.4716481]
[1748548446050,0.29610328,675.44,673.67,0.4716481]
[1748548446545,0.29610328,675.44,673.68,0.4716481]
[1748548447343,0.29610328,675.44,673.54,0.4716481]
[1748548447545,0.29610328,675.44,673.56,0.4716481]
[1748548447947,0.29610328,675.44,673.57,0.4716481]
[1748548448150,0.29610328,675.44,673.61,0.4716481]
[1748548448451,0.29610328,675.44,673.62,0.4716481]
[1748548448652,0.29610328,675.44,673.63,0.4716481]
[1748548449049,0.29610328,675.44,673.64,0.4716481]
[1748548449446,0.29610328,675.44,673.63,0.4716481]
[1748548449947,0.29610328,675.44,673.62,0.4716481]
[1748548450452,0.29610328,675.44,673.59,0.4716481]
[1748548450651,0.29610328,675.44,673.6,0.29691211]
[1748548451451,0.29610328,675.44,673.62,0.4716481]
[1748548451650,0.29610328,675.44,673.63,0.29689889]
[1748548452156,0.29610328,675.44,673.7,0.4716481]
[1748548452950,0.29610328,675.44,673.63,0.29689889]
[1748548468768,0.29610328,675.44,673.64,0.302]
[1748548469067,0.29610328,675.44,673.71,0.4716481]
[1748548470468,0.29610328,675.44,673.64,0.302]
[1748548470469,0.29610328,675.44,673.64,0.7736481]
[1748548471274,0.29610328,675.44,673.65,0.4716481]
[1748548471673,0.29610328,675.44,673.68,0.4716481]
[1748548471972,0.29610328,675.44,673.69,0.4716481]
[1748548472572,0.29610328,675.44,673.7,0.4716481]
[1748548473176,0.29610328,675.44,673.69,0.4716481]
[1748548473875,0.29610328,675.44,673.67,0.4716481]
[1748548474074,0.29610328,675.44,673.66,0.4716481]
[1748548476078,0.29610328,675.44,673.67,0.4716481]
[1748548480175,0.29610328,675.44,673.8,0.4716481]
[1748548480379,0.29610328,675.44,673.83,0.4716481]
[1748548480580,0.29610328,675.44,673.88,0.4716481]
[1748548480781,0.29610328,675.44,673.89,0.4716481]
[1748548480977,0.29610328,675.44,673.88,0.4716481]
[1748548481981,0.29610328,675.44,673.91,0.4716481]
[1748548482276,0.29610328,675.44,673.93,0.4716481]
[1748548482876,0.29610328,675.44,673.9,0.4716481]
[1748548483581,0.29610328,675.44,673.89,0.4716481]
[1748548484381,0.29610328,675.44,673.72,0.4716481]
[1748548484680,0.29610328,675.44,673.74,0.4716481]
[1748548484880,0.29610328,675.44,673.64,0.302]
[1748548484881,0.29610328,675.44,673.78,0.4716481]
[1748548485281,0.29610328,675.44,673.83,0.4716481]
[1748548485584,0.29610328,675.44,673.86,0.4716481]
[1748548486281,0.29610328,675.44,673.87,0.4716481]
[1748548486576,0.29610328,675.44,673.86,0.4716481]
[1748548487376,0.29610328,675.44,673.64,0.302]
[1748548487377,0.29610328,675.44,673.87,0.4716481]
[1748548487681,0.29610328,675.44,673.85,0.4716481]
[1748548488683,0.29610328,675.44,673.84,0.4716481]
[1748548489582,0.29610328,675.44,673.83,0.4716481]
[1748548489780,0.29610328,675.44,673.84,0.4716481]
[1748548490377,0.29610328,675.44,673.85,0.4716481]
[1748548491276,0.29610328,675.44,673.64,0.302]
[1748548491277,0.29610328,675.44,673.87,0.4716481]
[1748548491482,0.29610328,675.44,673.85,0.4716481]
[1748548492077,0.29610328,675.44,673.97,0.4716481]
[1748548492583,0.29610328,675.44,674.0,0.4716481]
[1748548493482,0.29610328,675.44,674.01,0.4716481]
[1748548493782,0.29610328,675.44,674.0,0.4716481]
[1748548494483,0.29610328,675.44,673.65,0.4716481]
[1748548494484,0.29610328,675.44,674.07,0.4716481]
[1748548494682,0.29610328,675.44,674.06,0.4716481]
[1748548495486,0.29610328,675.44,674.08,0.4716481]
[1748548495687,0.29610328,675.44,674.01,0.4716481]
[1748548496282,0.29610328,675.44,673.97,0.4716481]
[1748548496481,0.29610328,675.44,673.96,0.4716481]
[1748548497283,0.29610328,675.44,673.97,0.4716481]
[1748548497488,0.29610328,675.44,673.99,0.4716481]
[1748548497688,0.29610328,675.44,673.64,0.302]
[1748548497689,0.29610328,675.44,673.97,0.4716481]
[1748548498188,0.29610328,675.44,673.99,0.4716481]
[1748548498385,0.29610328,675.44,674.0,0.4716481]
[1748548498589,0.29610328,675.44,673.99,0.4716481]
[1748548498883,0.29610328,675.44,673.63,0.29689889]
[1748548498884,0.29610328,675.44,674.01,0.4716481]
[1748548499089,0.29610328,675.44,673.93,0.4716481]
[1748548499289,0.29610328,675.44,673.92,0.4716481]
[1748548499688,0.29610328,675.44,673.91,0.4716481]
[1748548499891,0.29610328,675.44,673.93,0.336]
[1748548500588,0.29610328,675.44,674.0,0.4716481]
[1748548500888,0.29610328,675.44,674.01,0.4716481]
[1748548501283,0.29610328,675.44,674.03,0.4716481]
[1748548501687,0.29610328,675.44,674.04,0.4716481]
[1748548501983,0.29610328,675.44,673.96,0.4716481]
[1748548502285,0.29610328,675.44,673.97,0.76839721]
[1748548502485,0.29610328,675.44,674.06,0.4716481]
[1748548502684,0.29610328,675.44,674.13,0.4716481]
[1748548503486,0.29610328,675.44,674.11,0.4716481]
[1748548504488,0.29610328,675.44,674.12,0.4716481]
[1748548504691,0.29610328,675.44,674.09,0.4716481]
[1748548504889,0.29610328,675.44,674.1,0.4716481]
[1748548505084,0.29610328,675.44,674.09,0.4716481]
[1748548505287,0.29610328,675.44,674.1,0.4716481]
[1748548505486,0.29610328,675.44,674.07,0.4716481]
[1748548505691,0.29610328,675.44,674.07,0.76835318]
[1748548505991,0.29610328,675.44,674.08,0.29670068]
[1748548512493,0.29610328,675.44,674.11,0.4716481]
[1748548512687,0.29610328,675.44,674.12,0.4716481]
[1748548512991,0.29610328,675.44,674.11,0.76833558]
[1748548513588,0.29610328,675.44,674.12,0.4716481]
[1748548513988,0.29610328,675.44,674.11,0.29668748]
[1748548513989,0.29610328,675.44,674.13,0.4716481]
[1748548514996,0.29610328,675.44,674.14,0.4716481]
[1748548515297,0.29610328,675.44,674.15,0.4716481]
[1748548515595,0.29610328,675.44,674.14,0.4716481]
[1748548515795,0.29610328,675.44,674.15,0.4716481]
[1748548516599,0.29610328,675.44,674.16,0.4716481]
[1748548516892,0.29610328,675.44,674.15,0.4716481]
[1748548517697,0.29610328,675.44,674.16,0.4716481]
[1748548518497,0.29610328,675.44,674.11,0.29668748]
[1748548528708,0.29610328,675.44,674.12,0.4716481]
[1748548529105,0.29610328,675.44,674.22,0.4716481]
[1748548529504,0.29610328,675.44,674.23,0.4716481]
[1748548529811,0.29610328,675.44,674.25,0.4716481]
[1748548530606,0.29610328,675.44,674.29,0.4716481]
[1748548530810,0.29610328,675.44,674.3,0.4716481]
[1748548531509,0.29610328,675.44,674.35,0.4716481]
[1748548532506,0.29610328,675.44,674.38,0.4716481]
[1748548533010,0.29610328,675.44,674.39,0.4716481]
[1748548533506,0.29610328,675.44,674.38,0.4716481]
[1748548533808,0.29610328,675.44,674.47,0.4716481]
[1748548534311,0.29610328,675.44,674.5,0.4716481]
[1748548534511,0.29610328,675.44,674.11,0.29668748]
[1748548534512,0.29610328,675.44,674.56,0.4716481]
[1748548534708,0.29610328,675.44,674.57,0.4716481]
[1748548535107,0.29610328,675.44,674.12,0.3790895]
[1748548535108,0.29610328,675.44,674.55,0.4716481]
[1748548535510,0.29610328,675.44,674.54,0.4716481]
[1748548536013,0.29610328,675.44,674.48,0.4716481]
[1748548536911,0.29610328,675.44,674.49,0.4716481]
[1748548538608,0.29610328,675.44,674.55,0.4716481]
[1748548538813,0.29610328,675.44,674.11,0.29668748]
[1748548538814,0.29610328,675.44,674.53,0.4716481]
[1748548539211,0.29610328,675.44,674.54,0.4716481]
[1748548539406,0.29610328,675.44,674.55,0.4716481]
[1748548539608,0.29610328,675.44,674.11,0.29668748]
[1748548539609,0.29610328,675.44,674.56,0.4716481]
[1748548540415,0.29610328,675.44,674.57,0.4716481]
[1748548540613,0.29610328,675.44,674.54,0.4716481]
[1748548541014,0.29610328,675.44,674.53,0.4716481]
[1748548541214,0.29610328,675.44,674.58,0.4716481]
[1748548541614,0.29610328,675.44,674.56,0.4716481]
[1748548542014,0.29610328,675.44,674.57,0.4716481]
[1748548542716,0.29610328,675.44,674.56,0.4716481]
[1748548543614,0.29610328,675.44,674.54,0.4716481]
[1748548544414,0.29610328,675.44,674.53,0.4716481]
[1748548545212,0.29610328,675.44,674.52,0.4716481]
[1748548545612,0.29610328,675.44,674.11,0.29668748]
[1748548545613,0.29610328,675.44,674.5,0.4716481]
[1748548546018,0.29610328,675.44,674.11,0.29668748]
[1748548546019,0.29610328,675.44,674.46,0.4716481]
[1748548546720,0.29610328,675.44,674.45,0.4716481]
[1748548547018,0.29610328,675.44,674.11,0.29668748]
[1748548547019,0.29610328,675.44,674.47,0.477]
[1748548551121,0.29610328,675.44,674.47,0.9486481]
[1748548551324,0.29610328,675.44,674.47,0.477]
[1748548567636,0.29610328,675.44,674.51,0.4716481]
[1748548567943,0.29610328,675.44,674.5,0.4716481]
[1748548568339,0.29610328,675.44,674.52,0.4716481]
[1748548568639,0.29610328,675.44,674.53,0.4716481]
[1748548569537,0.29610328,675.44,674.54,0.4716481]
[1748548570341,0.29610328,675.44,674.55,0.4716481]
[1748548570538,0.29610328,675.44,674.47,0.477]
[1748548570539,0.29610328,675.44,674.56,0.4716481]
[1748548571744,0.29610328,675.44,674.54,0.4716481]
[1748548572243,0.29610328,675.44,674.5,0.4716481]
[1748548572539,0.29610328,675.44,674.51,0.4716481]
[1748548573538,0.29610328,675.44,674.54,0.4716481]
[1748548573736,0.29610328,675.44,674.55,0.4716481]
[1748548573941,0.29610328,675.44,674.57,0.4716481]
[1748548575043,0.29610328,675.44,674.54,0.4716481]
[1748548575645,0.29610328,675.44,674.53,0.4716481]
[1748548576140,0.29610328,675.44,674.54,0.4716481]
[1748548576544,0.29610328,675.44,674.53,0.4716481]
[1748548576741,0.29610328,675.44,674.52,0.4716481]
[1748548577445,0.29610328,675.44,674.53,0.4716481]
[1748548579149,0.29610328,675.44,674.52,0.4716481]
[1748548579444,0.29610328,675.44,674.47,0.477]
[1748548588950,0.29610328,675.44,674.22,0.4716481]
[1748548589154,0.29610328,675.44,674.11,0.29668748]
[1748548589155,0.29610328,675.44,674.24,0.4716481]
[1748548590552,0.29610328,675.44,674.25,0.4716481]
[1748548590750,0.29610328,675.44,674.25,0.8266481]
[1748548590953,0.29610328,675.44,674.25,0.355]
[1748548597466,0.29610328,675.44,674.35,0.4716481]
[1748548597664,0.29610328,675.44,674.25,0.355]
[1748548597665,0.29610328,675.44,674.34,0.4716481]
[1748548598270,0.29610328,675.44,674.35,0.4716481]
[1748548599265,0.29610328,675.44,674.26,0.4716481]
[1748548599867,0.29610328,675.44,674.25,0.8266481]
[1748548600065,0.29610328,675.44,674.26,0.4716481]
[1748548600866,0.29610328,675.44,674.25,0.355]
[1748548600867,0.29610328,675.44,674.28,0.4716481]
[1748548601261,0.29610328,675.44,674.27,0.4716481]
[1748548601661,0.29610328,675.44,674.26,0.4716481]
[1748548602064,0.29610328,675.44,674.25,0.355]
[1748548602465,0.29610328,675.44,674.26,0.4716481]
[1748548602865,0.29610328,675.44,674.25,0.4716481]
[1748548603359,0.29610328,675.44,674.23,0.4716481]
[1748548604367,0.29610328,675.44,674.22,0.4716481]
[1748548605267,0.29610328,675.44,674.23,0.465]
[1748548609073,0.29610328,675.44,674.31,0.4716481]
[1748548610174,0.29610328,675.44,674.32,0.4716481]
[1748548611275,0.29610328,675.44,674.33,0.4716481]
[1748548612476,0.29610328,675.44,674.32,0.4716481]
[1748548612672,0.29610328,675.44,674.33,0.4716481]
[1748548613276,0.29610328,675.44,674.34,0.4716481]
[1748548614278,0.29610328,675.44,674.35,0.4716481]
[1748548614675,0.29610328,675.44,674.33,0.4716481]
[1748548615279,0.29610328,675.44,674.34,0.4716481]
[1748548616783,0.29610328,675.44,674.27,0.4716481]
[1748548618583,0.29610328,675.44,674.28,0.4716481]
[1748548619383,0.29610328,675.44,674.29,0.4716481]
[1748548620482,0.29610328,675.44,674.3,0.4716481]
[1748548620982,0.29610328,675.44,674.31,0.4716481]
[1748548621586,0.29610328,675.44,674.3,0.4716481]
[1748548622387,0.29610328,675.44,674.33,0.4716481]
[1748548622884,0.29610328,675.44,674.11,0.29668748]
[1748548623582,0.29610328,675.44,674.12,0.463]
[1748548626691,0.29610328,675.44,674.13,0.4716481]
[1748548626891,0.29610328,675.44,674.12,0.9346481]
[1748548627292,0.29610328,675.44,674.13,0.4716481]
[1748548628794,0.29610328,675.44,674.12,0.9346481]
[1748548629193,0.29610328,675.44,674.12,0.463]
[1748548632895,0.29610328,675.44,674.19,0.4716481]
[1748548633392,0.29610328,675.44,674.2,0.4716481]
[1748548634295,0.29610328,675.44,674.22,0.4716481]
[1748548634691,0.29610328,675.44,674.23,0.4716481]
[1748548635292,0.29610328,675.44,674.24,0.4716481]
[1748548636599,0.29610328,675.44,674.25,0.4716481]
[1748548637198,0.29610328,675.44,674.26,0.4716481]
[1748548638995,0.29610328,675.44,674.27,0.4716481]
[1748548639301,0.29610328,675.44,674.28,0.4716481]
[1748548639702,0.29610328,675.44,674.29,0.383]
[1748548642103,0.29610328,675.44,674.29,0.8546481]
[1748548643304,0.29610328,675.44,674.29,0.383]
[1748548649207,0.29610328,675.44,674.31,0.4716481]
[1748548649609,0.29610328,675.44,674.32,0.4716481]
[1748548650208,0.29610328,675.44,674.31,0.4716481]
[1748548650408,0.29610328,675.44,674.32,0.4716481]
[1748548652708,0.29610328,675.44,674.33,0.4716481]
[1748548653512,0.29610328,675.44,674.47,0.4716481]
[1748548659210,0.29610328,675.44,674.5,0.4716481]
[1748548662717,0.29610328,675.44,674.51,0.4716481]
[1748548666418,0.29610328,675.44,674.53,0.4716481]
[1748548666619,0.29610328,675.44,674.52,0.4716481]
[1748548666812,0.29610328,675.44,674.53,0.466]
[1748548688033,0.29610328,675.44,674.28,0.4716481]
[1748548689433,0.29610328,675.44,674.3,0.4716481]
[1748548691541,0.29610328,675.44,674.29,0.458]
[1748548691941,0.29610328,675.44,674.3,0.4716481]
[1748548693439,0.29610328,675.44,674.37,0.4716481]
[1748548693639,0.29610328,675.44,674.38,0.4716481]
[1748548693843,0.29610328,675.44,674.37,0.4716481]
[1748548695140,0.29610328,675.44,674.38,0.4716481]
[1748548695341,0.29610328,675.44,674.37,0.4716481]
[1748548696240,0.29610328,675.44,674.36,0.4716481]
[1748548697341,0.29610328,675.44,674.37,0.4716481]
[1748548697945,0.29610328,675.44,674.36,0.4716481]
[1748548698451,0.29610328,675.44,674.35,0.4716481]
[1748548698750,0.29610328,675.44,674.36,0.4716481]
[1748548699351,0.29610328,675.44,674.29,0.458]
[1748548701549,0.29610328,675.44,674.3,0.4716481]
[1748548701753,0.29610328,675.44,674.29,0.458]
[1748548702751,0.29610328,675.44,674.12,0.4716481]
[1748548702752,0.29610328,675.44,674.11,0.76833558]
[1748548704454,0.29610328,675.44,674.12,0.4716481]
[1748548704654,0.29610328,675.44,674.11,0.76833558]
[1748548704854,0.29610328,675.44,674.13,0.466]
[1748548705450,0.29610328,675.44,674.17,0.4716481]
[1748548706255,0.29610328,675.44,674.18,0.4716481]
[1748548706855,0.29610328,675.44,674.17,0.4716481]
[1748548707056,0.29610328,675.44,674.18,0.4716481]
[1748548707456,0.29610328,675.44,674.17,0.4716481]
[1748548709252,0.29610328,675.44,674.13,0.466]
[1748548709253,0.29610328,675.44,674.21,0.4716481]
[1748548709951,0.29610328,675.44,674.18,0.4716481]
[1748548711655,0.29610328,675.44,674.36,0.4716481]
[1748548713656,0.29610328,675.44,674.35,0.4716481]
[1748548715564,0.29610328,675.44,674.36,0.4716481]
[1748548715764,0.29610328,675.44,674.35,0.4716481]
[1748548715965,0.29610328,675.44,674.36,0.4716481]
[1748548717464,0.29610328,675.44,674.35,0.4716481]
[1748548717963,0.29610328,675.44,674.36,0.4716481]
[1748548718361,0.29610328,675.44,674.26,0.4716481]
[1748548718766,0.29610328,675.44,674.21,0.4716481]
[1748548719261,0.29610328,675.44,674.2,0.4716481]
[1748548719461,0.29610328,675.44,674.22,0.4716481]
[1748548719660,0.29610328,675.44,674.26,0.4716481]
[1748548719858,0.29610328,675.44,674.25,0.4716481]
[1748548720366,0.29610328,675.44,674.23,0.4716481]